Cogmind - Beta 13 X2 *** ADVENTURER MODE // 2023.12.22 @ 20:55:01 Player: AI-57H Result: Destroyed by G-47 Trooper with Particle Gun Performance ------------- Evolutions (0) 0 Regions Visited (4) 800 Robots Destroyed (17) 85 Value Destroyed (348) 348 Prototype IDs (2) 40 Alien Tech Used (0) 0 Bonus (0) 0 TOTAL SCORE: 1273 Bonus ------- None Cogmind --------- Core Integrity 0/250 Matter 222/300 Energy 180/250 System Corruption 1% Temperature Cool (26) Movement Treading (240) Ox1 Location -9/Mines Parts ------- > --- POWER (1) -------- Ion Engine > --- PROPULSION (2) --- Light Treads Light Treads > --- UTILITY (2) ------ High-capacity Storage Unit Signal Interpreter > --- WEAPON (2) ------- Light EM Pulse Cannon Light EM Pulse Cannon > --- INVENTORY (20) --- High-capacity Matter Pod (200) Visual Processing Unit Shield Generator Rocket Launcher Hammer Peak State ------------ > --- POWER ------------ Ion Engine > --- PROPULSION ------- Light Treads Light Treads > --- UTILITY ---------- Medium Storage Unit Signal Interpreter > --- WEAPON ----------- Autogun Autogun > --- INVENTORY -------- Ion Engine Light Treads Light Treads Light Treads Light Treads Visual Processing Unit ECM Suite Particle Gun Hammer [Rating: 10] Favorites ----------- Power Ion Engine Engine Ion Engine Propulsion Light Treads Treads Light Treads Utility Signal Interpreter Storage Medium Storage Unit Processor Signal Interpreter Weapon Autogun Energy Gun Small Laser Energy Cannon Light EM Pulse Cannon Ballistic Gun Autogun Build | -11 -10 -10 -10 -9 ------- Run | Yrd Mat Min Exi Min Slots Evolved . | . . . . . Power . | . . . . . Propulsion . | . . . . . Utility . | . . . . . Weapon . | . . . . . Parts Attached 20 | 6 7 . 1 6 Power 2 | 1 . . . 1 Engine 2 | 1 . . . 1 Core . | . . . . . Reactor . | . . . . . Propulsion 7 | 2 2 . . 3 Treads 7 | 2 2 . . 3 Leg . | . . . . . Wheel . | . . . . . Hover . | . . . . . Flight . | . . . . . Utility 4 | 1 2 . 1 . Device . | . . . . . Storage 3 | 1 1 . 1 . Processor 1 | . 1 . . . Hackware . | . . . . . Protection . | . . . . . Artifact . | . . . . . Weapon 7 | 2 3 . . 2 Energy Gun 1 | 1 . . . . Energy Cannon 2 | . . . . 2 Ballistic Gun 4 | 1 3 . . . Ballistic Cannon . | . . . . . Launcher . | . . . . . Special Weapon . | . . . . . Impact Weapon . | . . . . . Slashing Weapon . | . . . . . Piercing Weapon . | . . . . . Special Melee Weapon . | . . . . . Unidentified Prototypes . | . . . . . Parts Lost 4 | . . . . 4 Power 1 | . . . . 1 Propulsion 1 | . . . . 1 Utility . | . . . . . Weapon 2 | . . . . 2 Highest Loss Streak 4 | . . . . 4 To Critical Strikes 1 | . . . . 1 Average Slot Usage (%) 97 | . 92 100 100 97 Engine 14 | . 14 14 14 14 Treads 28 | . 28 28 28 28 Storage 14 | . 14 14 14 14 Processor 12 | . 6 14 14 14 Energy Cannon 1 | . . . . 14 Ballistic Gun 25 | . 23 28 28 10 Naked Turns . | . . . . . Heaviest Build 53 | 13 24 21 51 53 Greatest Support 40 | 40 40 40 40 40 Greatest Overweight (x) 1 | . . . 1 1 Average Overweight (x) . | . . . . 1 Largest Inventory Capacity 20 | 8 10 10 20 20 Average Capacity 13 | 7 8 10 17 20 Most Carried 12 | 6 10 10 12 12 Average Carried 9 | 3 7 9 10 8 Final Capacity 20 | 8 10 10 20 20 Final Carried 12 | 6 10 10 12 5 Class Distribution -------------------- 100% | Mutant Dominant Class ---------------- Mutant | -10/Materials Mutant | -10/Mines Mutant | -10/Exiles Mutant | -9/Mines Resources | -11 -10 -10 -10 -9 ----------- Run | Yrd Mat Min Exi Min Matter Collected 694 | 183 152 209 150 . Remotely . | . . . . . Salvage Created 470 | . 231 209 . 30 Parts 31 | . 19 12 . . Haulers Intercepted 1 | . 1 . . . Recyclers Shooed . | . . . . . Parts Field Recycled . | . . . . . Retrieved Matter . | . . . . . Parts Self-Destructed . | . . . . . Prevented . | . . . . . Kills | -11 -10 -10 -10 -9 ------- Run | Yrd Mat Min Exi Min Combat Hostiles Destroyed 18 | . 6 9 . 3 Guns 15 | . 6 9 . . Cannons 3 | . . . . 3 Classes Destroyed 5 | . 4 . . 1 Hauler 1 | . 1 . . . Watcher 1 | . 1 . . . Swarmer 9 | . 3 6 . . Grunt 6 | . 3 3 . . Assembled 3 | . . . . 3 Best Kill Streak 3 | . 3 3 . 3 Combat Bots Only 3 | . 3 3 . 3 Max Kills in Single Turn 1 | . 1 1 . 1 Gunslinging . | . . . . . Exploded . | . . . . . Melee . | . . . . . Uniques/NPCs Destroyed . | . . . . . Combat | -11 -10 -10 -10 -9 -------- Run | Yrd Mat Min Exi Min Hostile Shots Fired 150 | . 26 41 . 83 Missed 35 | . 4 15 . 16 Damage Taken 1152 | . 169 168 . 815 Core 260 | . 11 37 . 212 Absorbed by Shields . | . . . . . Ignored by Resistances 345 | . 53 57 . 235 Core Remaining (%) 100 | 100 . . . . Volleys Fired 50 | . 20 19 . 11 Largest 2 | . 2 2 . 2 Hottest 112 | . 60 46 . 112 Shots Fired 97 | . 40 38 . 19 Gun 86 | . 40 38 . 8 Cannon 11 | . . . . 11 Launcher . | . . . . . Special . | . . . . . Kinetic 74 | . 28 38 . 8 Thermal 12 | . 12 . . . Explosive . | . . . . . Electromagnetic 11 | . . . . 11 Robot Hit Streak 24 | . 24 13 . 15 Robot Miss Streak 3 | . 1 2 . 3 Penetration Max . | . . . . . Secondary Targets 3 | . 2 1 . . Max Gunslinging Chain 1 | . 1 1 . . Shots Hit Robots 74 | . 32 28 . 14 Core Hits 29 | . 14 11 . 4 Critical Kills 1 | . . 1 . . Critical Parts Destroyed 1 | . 1 . . . Critical Strikes 3 | . 1 1 . 1 Destroy 2 | . 1 1 . . Corrupt 1 | . . . . 1 Melee Attacks . | . . . . . Impact . | . . . . . Slashing . | . . . . . Piercing . | . . . . . Sneak Attacks . | . . . . . Combat Hostiles . | . . . . . Follow-up Attacks . | . . . . . Damage Inflicted 1053 | . 377 425 . 251 Guns 873 | . 374 425 . 74 Cannons 174 | . . . . 174 Explosions . | . . . . . Melee . | . . . . . Ramming 6 | . 3 . . 3 Kinetic 752 | . 253 425 . 74 Thermal 121 | . 121 . . . Explosive . | . . . . . Electromagnetic 174 | . . . . 174 Impact . | . . . . . Slashing . | . . . . . Piercing . | . . . . . Highest Corruption 1 | . 1 1 1 1 Average Corruption 1 | . 1 1 1 1 Corruption Purged . | . . . . . Corruption Blocked . | . . . . . Effects 14 | . 2 3 8 1 Message Errors 3 | . 1 . 2 . Matter Fused 4 | . . 1 2 1 Energy Discharges 3 | . . 2 1 . Parts Fused 1 | . . . 1 . Data Loss (minor) 3 | . 1 . 2 . Overload Shots . | . . . . . Overflow Damage 7 | . . . . 7 Projectiles 7 | . . . . 7 Explosions . | . . . . . Melee . | . . . . . Knockbacks 1 | . 1 . . . Impact 1 | . 1 . . . Kinetic . | . . . . . Secondary . | . . . . . Self-Inflicted Damage . | . . . . . Shots . | . . . . . Rammed 2 | . 1 . . 1 Targets Rammed 2 | . 1 . . 1 Kicked . | . . . . . Crushed . | . . . . . Highest Temperature 128 | . 66 30 . 128 Average Temperature 35 | . 36 9 . 53 Received Heat Transfer 702 | . 78 42 . 582 Siege Activations . | . . . . . Robots Corrupted . | . . . . . Combat Hostiles . | . . . . . Parts Fried . | . . . . . Impact Corruptions . | . . . . . Robots Melted . | . . . . . Combat Hostiles . | . . . . . Parts Melted 1 | . 1 . . . Heat Transferred 275 | . 275 . . . Parts Sabotaged . | . . . . . Parts Stolen . | . . . . . Parts Stripped . | . . . . . Power Chain Reactions . | . . . . . Missiles Intercepted . | . . . . . Alert | -11 -10 -10 -10 -9 ------- Run | Yrd Mat Min Exi Min Peak Influence 210 | . 210 202 . . Initial 3 | . . 3 . . Average 68 | . 68 94 . . Maximum Alert Level 1 | . 1 1 . . Low Security (%) 86 | 100 90 78 . 100 Level 1 13 | . 9 21 . . Level 2 . | . . . . . Level 3 . | . . . . . Level 4 . | . . . . . Level 5 . | . . . . . High Security . | . . . . . Max Security . | . . . . . Squads Dispatched . | . . . . . Investigation . | . . . . . Extermination . | . . . . . Reinforcement . | . . . . . Assault . | . . . . . Garrison . | . . . . . Intercept . | . . . . . Searches Triggered . | . . . . . Construction Impeded . | . . . . . Haulers Reinforced . | . . . . . Active Scanning Responses . | . . . . . Cargo Convoy Interrupts . | . . . . . Stealth | -11 -10 -10 -10 -9 --------- Run | Yrd Mat Min Exi Min Distress Signals . | . . . . . Communications Jammed . | . . . . . Distress Signals . | . . . . . Times Spotted 33 | . 11 10 . 12 Peak Tracking Total 7 | . 3 3 . 7 Tactical Retreats 1 | . . 1 . . Traps | -11 -10 -10 -10 -9 ------- Run | Yrd Mat Min Exi Min Traps Triggered 1 | . 1 . . . Indirectly . | . . . . . Trap Hack Attempts . | . . . . . Triggered . | . . . . . Disarmed . | . . . . . Reprogrammed . | . . . . . Reused . | . . . . . Traps Extracted . | . . . . . Installed . | . . . . . Triggered . | . . . . . Machines | -11 -10 -10 -10 -9 ---------- Run | Yrd Mat Min Exi Min Machines Disabled 1 | . . 1 . . Max in Single Turn 1 | . . 1 . . Machines Repaired . | . . . . . Machines Dismantled . | . . . . . Machines Sabotaged . | . . . . . Overloaded Fab Kills . | . . . . . Hacking | -11 -10 -10 -10 -9 --------- Run | Yrd Mat Min Exi Min Machines Accessed 7 | . 6 . 1 . Terminals 6 | . 6 . . . Fabricators . | . . . . . Repair Stations . | . . . . . Recycling Units . | . . . . . Scanalyzers . | . . . . . Garrison Access . | . . . . . Total Hacks 39 | . 16 . 23 . Successful 29 | . 6 . 23 . Failed 10 | . 10 . . . Catastrophic . | . . . . . Database Lockouts . | . . . . . Manual 13 | . 13 . . . Terminals 16 | . 16 . . . Fabricators . | . . . . . Repair Stations . | . . . . . Recycling Units . | . . . . . Scanalyzers . | . . . . . Garrison Access . | . . . . . Terminal Hacks 27 | . 4 . 23 . Record 23 | . . . 23 . Part Schematic 1 | . 1 . . . Robot Analysis 1 | . 1 . . . Prototype ID Bank 1 | . 1 . . . Terminal Index 1 | . 1 . . . Fabricator Hacks . | . . . . . Repair Station Hacks . | . . . . . Recycling Unit Hacks . | . . . . . Scanalyzer . | . . . . . Garrison Access Hacks . | . . . . . Unauthorized Hacks 2 | . 2 . . . Terminals 2 | . 2 . . . Botnet 2 | . 2 . . . Fabricators . | . . . . . Repair Stations . | . . . . . Recycling Units . | . . . . . Scanalyzers . | . . . . . Garrison Access . | . . . . . Data Cores Recovered . | . . . . . Used . | . . . . . Hacking Detections 6 | . 6 . . . Full Trace Events . | . . . . . Feedback Events . | . . . . . Feedback Blocked . | . . . . . Robot Schematics Acquired . | . . . . . Robots Built . | . . . . . Authchips . | . . . . . Time . | . . . . . Total Robot Build Rating . | . . . . . Part Schematics Acquired 1 | . 1 . . . Parts Built . | . . . . . Authchips . | . . . . . Time . | . . . . . Total Part Build Rating . | . . . . . Parts Repaired . | . . . . . Time . | . . . . . Parts Recycled . | . . . . . Recycled Matter . | . . . . . Retrieved Matter . | . . . . . Retrieved Components . | . . . . . Parts Scanalyzed . | . . . . . Part Schematics Acquired . | . . . . . Parts Damaged . | . . . . . Bothacking | -11 -10 -10 -10 -9 ------------ Run | Yrd Mat Min Exi Min Used RIF Installer . | . . . . . Robots Hacked . | . . . . . Non-combat . | . . . . . Combat . | . . . . . Robot Hacks Applied . | . . . . . Relay Couplers Released . | . . . . . Fabnet Peak Effective % . | . . . . . Robots Rewired . | . . . . . Allies Hacked . | . . . . . Hacks Repelled . | . . . . . Allies | -11 -10 -10 -10 -9 -------- Run | Yrd Mat Min Exi Min Total Allies 1 | . . 1 . . Largest Group 1 | . . 1 1 . Highest-Rated Group 31 | . . 31 31 . Highest-Rated Ally 31 | . . 31 31 . Total Orders . | . . . . . Ally Attacks . | . . . . . Total Damage . | . . . . . Kills . | . . . . . Allies Corrupted . | . . . . . Allies Melted . | . . . . . Intel | -11 -10 -10 -10 -9 ------- Run | Yrd Mat Min Exi Min Robot Analysis Total 1 | . 1 . . . Derelict Logs Recovered 2 | . . 1 . 1 Drone Launches . | . . . . . Drone Recoveries . | . . . . . Exploration | -11 -10 -10 -10 -9 ------------- Run | Yrd Mat Min Exi Min Turns Passed 2282 | 112 503 666 856 145 Spaces Moved 1125 | 65 245 380 394 41 Core 5 | 5 . . . . Treads 1120 | 60 245 380 394 41 Legs . | . . . . . Wheels . | . . . . . Hover . | . . . . . Flight . | . . . . . Fastest Speed 50 | 50 160 160 160 240 Average Speed 182 | 151 160 160 216 240 Slowest Speed 240 | 160 160 160 240 240 Overloaded Moves . | . . . . . Propulsion Burnouts . | . . . . . Robots Hopped . | . . . . . Cave-ins Triggered . | . . . . . Exploration Rate (%) 46 | 4 65 76 68 21 Regions Visited 4 Branch Regions 3 Pre-discovered Areas 1 | . . . 1 . Known Exits Taken 3 | . 1 1 1 . Unknown Exits Taken 1 | 1 . . . . Scrap Searched . | . . . . . Spaces Dug . | . . . . . Terrain Destroyed . | . . . . . Melee . | . . . . . Projectile . | . . . . . AOE . | . . . . . Terrain Rammed . | . . . . . Walls Destroyed . | . . . . . Machines Disabled . | . . . . . Actions | -11 -10 -10 -10 -9 --------- Run | Yrd Mat Min Exi Min Total 1274 | 76 320 408 399 71 Wait 33 | . 16 8 . 9 Move 1121 | 64 244 379 393 41 Hop . | . . . . . Pick Up 26 | 6 16 1 3 . Fast Attach 11 | 6 5 . . . Attach 4 | . . . . 4 Detach . | . . . . . Swap 5 | . 2 . 1 2 Drop 22 | . 16 1 2 3 Fire 50 | . 20 19 . 11 Melee . | . . . . . Ram . | . . . . . Kick . | . . . . . Crush 2 | . 1 . . 1 Escape Stasis . | . . . . . Rewire . | . . . . . Trap . | . . . . . Miscellaneous . | . . . . . Route ------- -11/Scrapyard -10/Materials (discovered 3 exits: *Mat x2 / *Min) -10/Mines (discovered 2 exits: *Mat / *Exi) -10/Exiles (discovered 2 exits: *Min x2) -9/Mines History --------- Turn | Location | Event 24 | -11/Scrapyard | Discovered new exit (range 16) 113 | -11/Scrapyard | Entered Materials 293 | -10/Materials | Discovered new exit (range 8) 304 | -10/Materials | Build established: Mutant 496 | -10/Materials | Discovered new exit (range 8) 514 | -10/Materials | Identified exit to Materials 597 | -10/Materials | Discovered new exit (range 8) 600 | -10/Materials | Derelicts attacked the area 614 | -10/Materials | Identified exit to Mines 616 | -10/Materials | Entered Mines 899 | -10/Mines | Received a Rocket Launcher from a helpful Derelict 944 | -10/Mines | Discovered exit to Materials (range 4) 1208 | -10/Mines | Learned 4 Materials zone layouts 1221 | -10/Mines | Received a Mining Laser from a helpful Derelict 1274 | -10/Mines | Deemed a non-threat by the Exiles lab entrance 1275 | -10/Mines | Discovered new exit (range 5) 1280 | -10/Mines | Identified exit to Exiles 1282 | -10/Mines | Entered Exiles 1282 | -10/Exiles | Accompanied by 1 ally 1305 | -10/Exiles | Discovered new exit (range 15) 1324 | -10/Exiles | Met 8R-AWN 1351 | -10/Exiles | Identified exit to Mines 1407 | -10/Exiles | Met EX-HEX 1511 | -10/Exiles | Met EX-DEC 1595 | -10/Exiles | Learned location of Zion (-7) 1635 | -10/Exiles | Met EX-BIN 2117 | -10/Exiles | Discovered exit to Mines (range 11) 2138 | -10/Exiles | Entered Mines 2139 | -9/Mines | Assembled infested the area 2171 | -9/Mines | Learned Materials trap positions 2172 | -9/Mines | Core integrity fell below 50% 2201 | -9/Mines | Core integrity fell below 20% 2237 | -9/Mines | Lost 4 parts (1p1n2w) 2283 | -9/Mines | Destroyed by G-47 Trooper with Particle Gun Last Messages --------------- 02199_ Dropped Lrg. Battery. 02199_ R-06 Scavenger collects Lrg. Battery. 02200_ U-05 Engineer lays Concrete. 02202_ K-01 Serf collects debris. 02204_ U-05 Engineer lays Concrete. 02205_ K-01 Serf collects debris. 02206_ U-05 Engineer builds a Wall. 02206_ Autogun destroyed. 02207_ K-01 Serf destroyed. 02210_ R-06 Scavenger collects Med. Matter Pod. 02211_ as-55294 destroyed. 02213_ K-01 Serf collects debris. 02217_ as-69333 destroyed. 02218_ K-01 Serf collects debris. 02221_ K-01 Serf cleans the Core Extractor. 02223_ Dropped Lgt. Treads. 02225_ K-01 Serf collects debris. 02225_ Dropped Lgt. Treads. 02246_ The unstable cave ceiling collapses. 02259_ R-06 Scavenger collects Lgt. Treads. Map ----- +----------------------------------------------------+ | ?????????????????????????????????????????????????? | | ?????????????????????????????????????????????????? | | ?????????????????????????????????????????????????? | | ?????????????????????????????????????????????????? | | ?????????????????????????????????????????????????? | | ?????????????????????????????????????????????????? | | ?????????????????????????????????????????????????? | | ?????????????????????????????????????????????????? | | ?????????????????????????????????????????????????? | | ?????????????????????????????????????????????????? | | ?????????????????????????????????????????????????? | | ????????????????????? ???????????????????????????? | | ???????????????????# ??????????????????????????? | | ???????????????????? ??????????????????????????? | | ???????????????????? ??????????????????????????? | | ???????????????????? ??????????????????????????? | | ???????????????????? ??????????????????????????? | | ????????????????????# ??????????????????????????? | | ????????????????????# ??# ??????????????????????? | | ????????????##??????# ## ???????????????????????? | | ???????????## ?????# ???????????????????????? | | ??????????## ##### ????????????????????????? | | ??????????? ????????????????????????? | | ?????????????? #????????????????????????? | | ??????????????????# ######???????????????????? | | ???????????????????# g@ #???????????????????? | | ???????????????????### g#### #???????????????????? | | ??????????????????#### #????????????????????????? | | ??????????????????# #????????????????????????? | | ??????????????????# #????????????????????????? | | ??????????????????# ####????????????????????????? | | ??????????????????# #???????????????????????????? | | ??????????????????# #???????????????????????????? | | ??????????????????# #???????????????????????????? | | ??????????????????# #???????????????????????????? | | ??????????????????# #???????????????????????????? | | ??????????????????# %###########?????????????????? | | ?????????????????## ##????????????????? | | ????????????????## #????????????????? | | ????????????????# ###??????????????? | | ????????????????# ????????????? | | ???????????????## = ????????????? | | ????## %???#???# ##??????????????? | | ????# = # ??## # #???????????????? | | ???? % ## ### #???????????????? | | ???? ! # #?# #??????????????? | | ???? ### #?# """ ??????????????? | | ?????? ?# ##?? """?? ??????????????? | | ????????# ??## #### #???? ""??????????????????? | | ???????? ?????# #???##????? ??????????????????? | +----------------------------------------------------+ Best States ------------- Heat Dissipation 25 Energy Generation 10 Energy Capacity 250 Matter Stores 300 Matter Capacity 300 Sight Range 16 Terrain Scan Density 10 Resistance: KI 20 Resistance: TH 20 Resistance: EX 20 Resistance: EM 20 Resistance: I 20 Resistance: S 20 Resistance: P 20 Evasion (%) 40 Recoil Reduction 2 Offensive Hacking 10 Item Schematics ----------------- Lgt. Armor Plating | -10/Materials | Hacked Robot Schematics ------------------ None Fabricated ------------ Nothing Alien Tech Used ----------------- None Achievements -------------- None Challenges ------------ None Game ------ Seed ThermalDecoderScreen Manual? 0 Play Time 00:31:01 Cumulative 296.3 hours Start 2023.12.22 @ 16:42:27 End 2023.12.22 @ 20:55:01 Sessions 1 Manual Loads 0 Difficulty Adventurer Special Mode None Game No. 69 Rogue 52 Adventurer 11 Explorer 6 Win Type - Total 24 Types 9/0/4/3/0/6/2/0/0 Lore% 65 Gallery% 75 Achievement% 72 Wizard Run 0 Options --------- ASCII 0 Keyboard 0 Movement Mouse Keybinds 0 Fullscreen 1 Font 24/Smallcaps Map View 76x50 Zoom Use 0% Tactical HUD 1 Map Filters NONE Filters NONE Steam 1 RUN: 95cc4061-bbcc-41b9-b622-fde08229d8fa